bitfinex-derivatives/quotes_BTCF0:USTF0_20250528
["timestamp","ask_amount","ask_price","bid_price","bid_amount"]
[1748395858648,0.05139659,108890.0,108880.0,3.3688184]
[1748395858849,0.05139659,108890.0,108880.0,3.36881856]
[1748395859045,0.05139659,108890.0,108880.0,3.35822191]
[1748395859245,0.05139659,108890.0,108880.0,3.36881857]
[1748395859647,0.05139659,108890.0,108880.0,3.3688192]
[1748395859850,0.05139659,108890.0,108880.0,3.0080192]
[1748395860053,0.05139659,108890.0,108880.0,3.72961772]
[1748395861161,0.05139659,108890.0,108880.0,3.60812854]
[1748395861357,0.00013752,108900.0,108890.0,0.1835796]
[1748395861561,0.42011024,108900.0,108890.0,1.1867754]
[1748395861764,0.42011024,108900.0,108890.0,1.17773899]
[1748395861765,0.90239941,108900.0,108890.0,1.17773899]
[1748395862058,0.95649941,108900.0,108890.0,1.28529578]
[1748395862447,0.95649941,108900.0,108890.0,1.28517578]
[1748395862653,0.95649941,108900.0,108890.0,1.28529578]
[1748395862864,0.95749941,108900.0,108890.0,1.28529578]
[1748395863064,0.95749941,108900.0,108890.0,1.27458022]
[1748395863250,0.95749941,108900.0,108890.0,1.28517621]
[1748395863865,0.95749941,108900.0,108890.0,0.74845621]
[1748395864066,0.95749941,108900.0,108890.0,1.28501621]
[1748395864264,0.83601024,108900.0,108890.0,1.28501621]
[1748395864451,0.83601024,108900.0,108890.0,1.28513593]
[1748395867873,0.83601024,108900.0,108890.0,1.28513567]
[1748395869566,0.83601024,108900.0,108890.0,1.12195755]
[1748395869965,0.83601024,108900.0,108890.0,1.24344672]
[1748395870263,0.83601024,108900.0,108890.0,1.23285127]
[1748395870465,0.83601024,108900.0,108890.0,1.24344668]
[1748395870668,0.83601024,108900.0,108890.0,1.24344687]
[1748395871864,0.83601024,108900.0,108890.0,0.80017127]
[1748395872067,0.95749941,108900.0,108890.0,0.9267826]
[1748395872367,0.95749941,108900.0,108890.0,1.15274439]
[1748395873061,0.83601024,108900.0,108890.0,1.15274439]
[1748395873268,0.83601024,108900.0,108890.0,1.15294439]
[1748395873468,0.83601024,108900.0,108890.0,1.15282439]
[1748395873669,0.83601024,108900.0,108890.0,1.16341967]
[1748395874177,0.83601024,108900.0,108890.0,1.16353967]
[1748395874363,0.83601024,108900.0,108890.0,1.18473023]
[1748395874873,0.83601024,108900.0,108890.0,1.19532562]
[1748395875270,0.83601024,108900.0,108890.0,1.18473023]
[1748395877768,0.83601024,108900.0,108890.0,1.00115063]
[1748395877963,0.83601024,108900.0,108890.0,1.18473023]
[1748395878169,0.89081024,108900.0,108890.0,1.18473023]
[1748395878665,0.89081024,108900.0,108890.0,1.1953247]
[1748395878868,0.89081024,108900.0,108890.0,1.18473023]
[1748395879068,0.89081024,108900.0,108890.0,1.1953247]
[1748395879662,0.89081024,108900.0,108890.0,1.19532457]
[1748395880663,0.89081024,108900.0,108890.0,1.32571166]
[1748395881369,0.89081024,108900.0,108890.0,1.18385023]
[1748395881571,0.89081024,108900.0,108890.0,1.19444471]
[1748395882174,0.89081024,108900.0,108890.0,1.18385023]
[1748395882966,0.89081024,108900.0,108890.0,1.19372003]
[1748395883167,0.89081024,108900.0,108890.0,0.89635063]
[1748395883463,1.01229941,108900.0,108890.0,1.07981013]
[1748395883669,1.01229941,108900.0,108890.0,1.07993013]
[1748395884877,0.89081024,108900.0,108890.0,1.07993013]
[1748395885876,0.89081024,108900.0,108890.0,1.07953013]
[1748395886174,0.89081024,108900.0,108890.0,0.46527063]
[1748395886365,1.60285032,108900.0,108890.0,0.13857326]
[1748395886567,2.19480842,108900.0,108890.0,0.02299434]
[1748395886765,2.19480842,108900.0,108880.0,0.76056186]
[1748395886766,0.1835796,108890.0,108880.0,0.76056186]
[1748395886973,1.17138795,108890.0,108880.0,0.86056186]
[1748395887565,1.12840853,108890.0,108880.0,0.86056186]
[1748395887975,1.12840853,108890.0,108880.0,0.86156186]
[1748395888177,1.12840853,108890.0,108880.0,0.54254456]
[1748395889272,0.81691936,108890.0,108880.0,0.84763013]
[1748395889471,0.81691936,108890.0,108880.0,0.89893013]
[1748395889671,0.81691936,108890.0,108880.0,0.77744096]
[1748395889873,0.87121936,108890.0,108880.0,0.77744096]
[1748395890074,0.87121936,108890.0,108880.0,0.78744096]
[1748395890480,0.99270853,108890.0,108880.0,0.78744096]
[1748395890782,0.99270853,108890.0,108880.0,0.35660096]
[1748395890979,0.99270853,108890.0,108880.0,0.77812096]
[1748395891180,0.99270853,108890.0,108880.0,0.59452456]
[1748395891371,1.03024873,108890.0,108880.0,0.59452456]
[1748395891571,0.99301899,108890.0,108880.0,0.59452456]
[1748395892475,0.99301899,108890.0,108880.0,0.59432456]
[1748395892986,0.99301899,108890.0,108880.0,0.59444456]
[1748395893286,1.04461899,108890.0,108880.0,0.59444456]
[1748395893480,1.42461899,108890.0,108880.0,0.11182456]
[1748395893780,1.04461899,108890.0,108880.0,0.54330456]
[1748395893985,1.39461899,108890.0,108880.0,0.54330456]
[1748395894183,1.39461899,108890.0,108880.0,0.54342456]
[1748395894687,1.39461899,108890.0,108880.0,0.54790665]
[1748395896476,1.27312982,108890.0,108880.0,0.54790665]
[1748395896784,1.21461899,108890.0,108880.0,0.54790665]
[1748395897089,1.21461899,108890.0,108880.0,0.61040665]
[1748395897292,1.09312982,108890.0,108880.0,0.79400305]
[1748395897586,1.05558962,108890.0,108880.0,1.01519222]
[1748395897782,1.05658962,108890.0,108880.0,1.01519222]
[1748395898380,1.05658962,108890.0,108880.0,0.89370305]
[1748395901390,0.88658962,108890.0,108880.0,0.89370305]
[1748395904594,0.52578962,108890.0,108880.0,1.01519222]
[1748395904784,0.36818962,108890.0,108880.0,1.37599222]
[1748395904982,0.42358962,108890.0,108880.0,1.37599222]
[1748395905898,0.42358962,108890.0,108880.0,1.53363294]
[1748395906395,0.42358962,108890.0,108880.0,1.53331294]
[1748395906592,0.52968962,108890.0,108880.0,1.53331294]
[1748395906779,0.47468962,108890.0,108880.0,1.53331294]
[1748395907283,0.42358962,108890.0,108880.0,1.58182274]
[1748395908194,0.42358962,108890.0,108880.0,1.66356276]
[1748395908400,0.42358962,108890.0,108880.0,1.66356706]
[1748395908590,0.001,108890.0,108880.0,1.97356706]
[1748395908785,0.001,108890.0,108880.0,1.89182704]
[1748395909088,0.1845795,108890.0,108880.0,2.01486706]
[1748395910796,0.1845795,108890.0,108880.0,1.89337789]
[1748395911100,0.1845795,108890.0,108880.0,2.01486706]
[1748395911998,0.001,108890.0,108880.0,2.01486706]
[1748395912692,0.1845795,108890.0,108880.0,2.01487526]
[1748395912908,0.2351795,108890.0,108880.0,2.01487526]
[1748395914795,0.2351795,108890.0,108880.0,1.93313524]
[1748395915695,0.0516,108890.0,108880.0,1.93313524]
[1748395916199,0.0516,108890.0,108880.0,1.87897452]
[1748395916403,0.0516,108890.0,108880.0,1.93311962]
[1748395917002,0.0516,108890.0,108880.0,1.93312415]
[1748395918490,0.0516,108890.0,108880.0,1.87897905]
[1748395918686,0.0516,108890.0,108880.0,1.9723642]
[1748395918892,0.0516,108890.0,108880.0,2.01490034]
[1748395919490,0.0516,108890.0,108880.0,1.96075199]
[1748395919690,0.001,108890.0,108880.0,1.94668578]
[1748395922711,0.001,108890.0,108880.0,1.94552578]
[1748395922891,0.1547,108890.0,108880.0,1.94508578]
[1748395923093,0.1547,108890.0,108880.0,2.02694082]
[1748395923693,0.1036,108890.0,108880.0,2.02694082]
[1748395923900,0.1036,108890.0,108880.0,1.94520578]
[1748395925013,0.0522,108890.0,108880.0,1.94520578]
[1748395925398,0.0522,108890.0,108880.0,2.03859093]
[1748395925597,0.0522,108890.0,108880.0,1.94520578]
[1748395926107,0.0522,108890.0,108880.0,2.03859093]
[1748395926296,0.0522,108890.0,108880.0,1.94520578]
[1748395926499,0.0522,108890.0,108880.0,2.03859093]
[1748395927007,0.0522,108890.0,108880.0,1.93275696]
[1748395927209,0.0522,108890.0,108880.0,2.02756365]
[1748395927411,0.001,108890.0,108880.0,1.9451801]
[1748395928698,0.001,108890.0,108880.0,2.0657429]
[1748395929310,0.05003752,108900.0,108890.0,0.1835795]
[1748395929505,0.05003752,108900.0,108890.0,1.52849794]
[1748395930111,0.05003752,108900.0,108890.0,1.54018952]
[1748395930611,0.00113752,108900.0,108890.0,1.44675236]
[1748395931209,0.00113752,108900.0,108890.0,1.56824153]
[1748395931719,0.00113752,108900.0,108890.0,1.44675236]
[1748395931905,0.05513752,108900.0,108890.0,1.44675236]
[1748395932612,0.05513752,108900.0,108890.0,1.52847484]
[1748395933605,0.10593752,108900.0,108890.0,1.52847484]
[1748395933805,0.10593752,108900.0,108890.0,1.52845532]
[1748395934024,0.10593752,108900.0,108890.0,1.40696615]
[1748395934200,0.10593752,108900.0,108890.0,1.52845532]
[1748395935209,0.10593752,108900.0,108890.0,1.88925532]
[1748395935405,0.10593752,108900.0,108890.0,1.75903899]
[1748395935624,0.10593752,108900.0,108890.0,1.80033899]
[1748395936007,0.10593752,108900.0,108890.0,1.88206147]
[1748395936208,0.10593752,108900.0,108890.0,1.80033899]
[1748395936516,0.10593752,108900.0,108890.0,1.88206147]
[1748395936921,0.10493752,108900.0,108890.0,1.88206147]
[1748395937308,0.10493752,108900.0,108890.0,1.88306147]
[1748395940317,0.10493752,108900.0,108890.0,2.36683078]
[1748395941011,0.10493752,108900.0,108890.0,1.71414161]
[1748395941322,0.59359951,108900.0,108890.0,0.68250491]
[1748395941524,0.59359951,108900.0,108890.0,0.57817121]
[1748395941713,0.59359951,108900.0,108890.0,1.19287081]
[1748395942220,0.59359951,108900.0,108890.0,1.00945121]
[1748395942418,0.59359951,108900.0,108890.0,1.06730799]
[1748395942618,0.47211034,108900.0,108890.0,1.06730799]
[1748395943627,0.59359951,108900.0,108890.0,0.63614799]
[1748395943921,0.59359951,108900.0,108890.0,1.06710799]
[1748395945325,0.59359951,108900.0,108890.0,1.0626259]
[1748395945923,0.95439951,108900.0,108890.0,0.9025459]
[1748395946225,0.95439951,108900.0,108890.0,1.03277328]
[1748395946423,0.95439951,108900.0,108890.0,1.03265328]
[1748395946619,0.95439951,108900.0,108890.0,1.04277328]
[1748395946819,0.95439951,108900.0,108890.0,1.03277328]
[1748395947327,0.95439951,108900.0,108890.0,1.04277328]
[1748395947626,0.95439951,108900.0,108890.0,0.93977532]
[1748395947832,0.95439951,108900.0,108890.0,0.93965532]
[1748395948011,0.95439951,108900.0,108890.0,0.92965532]
[1748395948211,0.95439951,108900.0,108890.0,0.96937612]
[1748395948418,0.95439951,108900.0,108890.0,0.92877532]
[1748395948620,0.95539951,108900.0,108890.0,0.92877532]
[1748395949016,0.95539951,108900.0,108890.0,0.93877532]
[1748395949216,0.95539951,108900.0,108890.0,0.79502063]
[1748395950227,0.95539951,108900.0,108890.0,0.36430063]
[1748395950433,0.9927648,108900.0,108890.0,0.35430063]
[1748395950731,1.20608641,108900.0,108890.0,0.17072103]
[1748395950915,1.20608641,108900.0,108890.0,0.60220103]
[1748395951123,1.45459724,108900.0,108890.0,0.78590063]
[1748395951732,1.45459724,108900.0,108890.0,0.60264103]
[1748395952523,1.45459724,108900.0,108890.0,0.60252103]
[1748395952830,1.45459724,108900.0,108890.0,0.60264103]
[1748395953219,1.45459724,108900.0,108890.0,0.56204]
[1748395955829,1.57608641,108900.0,108890.0,0.13012]
[1748395956026,1.82608641,108900.0,108890.0,0.13012]
[1748395956329,1.82608641,108900.0,108890.0,0.13]
[1748395956533,1.82608641,108900.0,108890.0,0.13012]
[1748395958240,1.62838641,108900.0,108890.0,0.13012]
[1748395959524,1.3853532,108900.0,108890.0,0.13012]
[1748395959727,1.62833154,108900.0,108890.0,0.13012]
[1748395962340,1.3853532,108900.0,108890.0,0.13012]
[1748395962545,1.62833154,108900.0,108890.0,0.13012]
[1748395964542,1.6283286,108900.0,108890.0,0.13012]
[1748395968441,0.36720652,108880.0,108870.0,1.12184102]
[1748395968631,0.48869569,108880.0,108870.0,1.35603573]
[1748395968831,0.64549569,108880.0,108870.0,1.35603573]
[1748395969231,0.64549569,108880.0,108870.0,1.12652103]
[1748395969436,0.64549569,108880.0,108870.0,1.07642103]
[1748395969940,1.32629569,108880.0,108870.0,0.62416103]
[1748395970343,1.00629569,108880.0,108870.0,0.67818103]
[1748395970540,1.35629569,108880.0,108870.0,0.67818103]
[1748395970741,1.35629569,108880.0,108870.0,0.68018103]
[1748395971347,1.35829569,108880.0,108870.0,0.67510103]
[1748395971535,1.36029569,108880.0,108870.0,0.67510103]
[1748395972541,1.36029569,108880.0,108870.0,0.68921829]
[1748395972744,0.73200652,108880.0,108870.0,0.87283167]
[1748395972958,0.37120652,108880.0,108870.0,1.3079035]
[1748395973245,0.37120652,108880.0,108870.0,1.32202027]
[1748395973446,0.37120652,108880.0,108870.0,0.63154027]
[1748395973645,0.90679569,108880.0,108870.0,0.87451524]
[1748395973831,0.83028567,108880.0,108870.0,0.45823279]
[1748395974039,1.01389569,108880.0,108870.0,0.88859279]
[1748395974247,1.01389569,108880.0,108870.0,0.88859396]
[1748395974552,0.89240652,108880.0,108870.0,0.88859396]
[1748395974849,0.83910652,108880.0,108870.0,1.07220717]
[1748395975246,0.83910652,108880.0,108870.0,1.05808844]
[1748395975450,0.83910652,108880.0,108870.0,1.07220816]
[1748395976340,0.87649217,108880.0,108870.0,1.05808844]
[1748395976549,0.87649217,108880.0,108870.0,1.08632744]
[1748395976753,0.87649217,108880.0,108870.0,1.25645761]
[1748395976754,0.22498215,108880.0,108870.0,1.25645761]
[1748395976946,0.1875965,108880.0,108870.0,1.76429601]
[1748395977146,0.1875965,108880.0,108870.0,1.76429547]
[1748395977743,0.1875965,108880.0,108870.0,1.9486652]
[1748395978445,0.1875965,108880.0,108870.0,1.94866881]
[1748395979443,0.1875965,108880.0,108870.0,1.89457898]
[1748395979649,0.1875965,108880.0,108870.0,2.01616271]
[1748395979956,0.1875965,108880.0,108870.0,2.08383229]
[1748395980150,0.1875965,108880.0,108870.0,2.08383558]
[1748395980346,0.1875965,108880.0,108870.0,1.88053416]
[1748395980752,0.1875965,108880.0,108870.0,1.88021416]
[1748395980958,0.1875965,108880.0,108870.0,1.88041416]
[1748395981158,0.1875965,108880.0,108870.0,1.86628607]
[1748395981356,0.1875965,108880.0,108870.0,1.88029533]
[1748395981558,0.1875965,108880.0,108870.0,1.88041533]
[1748395982057,0.1875965,108880.0,108870.0,1.8804141]
[1748395982253,0.1875965,108880.0,108870.0,1.96223209]
[1748395982652,0.1875965,108880.0,108870.0,1.97379028]
[1748395982857,0.1875965,108880.0,108870.0,2.01509028]
[1748395983662,0.1875965,108880.0,108870.0,2.01509069]
[1748395984961,0.1875965,108880.0,108870.0,2.01957278]
[1748395985359,0.1875965,108880.0,108870.0,2.00544434]
[1748395985658,0.1875965,108880.0,108870.0,2.01957269]
[1748395985858,0.1875965,108880.0,108870.0,2.00544434]
[1748395986359,0.1875965,108880.0,108870.0,2.01957044]
[1748395986948,0.1875965,108880.0,108870.0,1.87763509]
[1748395987259,0.1875965,108880.0,108870.0,1.80996379]
[1748395987762,0.1875965,108880.0,108870.0,1.79583867]
[1748395987972,0.1875965,108880.0,108870.0,1.80996311]
[1748395988559,0.1875965,108880.0,108870.0,1.07354074]
[1748395988750,0.82018567,108880.0,108870.0,1.33955042]
[1748395988951,0.82018567,108880.0,108870.0,1.10955042]
[1748395989150,0.82018567,108880.0,108870.0,1.10955027]
[1748395989449,0.82018567,108880.0,108870.0,1.10943027]
[1748395989651,1.00379569,108880.0,108870.0,0.53004443]
[1748395989857,1.00379569,108880.0,108870.0,0.76374059]
[1748395990048,1.00379569,108880.0,108870.0,0.77653408]
[1748395990252,1.00379569,108880.0,108870.0,0.77665408]
[1748395990453,1.00379569,108880.0,108870.0,0.24353408]
[1748395990657,1.00379569,108880.0,108870.0,0.24365408]
[1748395990960,1.00379569,108880.0,108870.0,0.24367418]
[1748395991154,1.00379569,108880.0,108870.0,0.77655353]
[1748395991561,1.00379569,108880.0,108870.0,0.81722476]
[1748395991756,1.04119346,108880.0,108870.0,0.81723095]
[1748395992157,1.04119346,108880.0,108870.0,1.00084415]
[1748395992570,1.00379569,108880.0,108870.0,1.00081701]
[1748395992865,0.88230652,108880.0,108870.0,1.00080648]
[1748395993564,0.52150652,108880.0,108870.0,1.06888286]
[1748395993769,0.52150652,108880.0,108870.0,1.17408286]
[1748395993960,0.52150652,108880.0,108870.0,1.05259369]
[1748395994164,0.52150652,108880.0,108870.0,1.05259229]
[1748395996569,0.52150652,108880.0,108870.0,1.10676877]
[1748395996755,0.0557,108880.0,108870.0,1.94086042]
[1748395997058,0.2392964,108880.0,108870.0,1.98940677]
[1748395997468,0.004,108880.0,108870.0,1.93523029]
[1748395997764,0.1875964,108880.0,108870.0,2.00290061]
[1748395997972,0.004,108880.0,108870.0,1.92109872]
[1748395998566,0.2396964,108880.0,108870.0,2.0144754]
[1748395998755,0.2396964,108880.0,108870.0,2.01447039]
[1748395998955,0.2396964,108880.0,108870.0,1.92109421]
[1748395999366,0.2396964,108880.0,108870.0,1.92109414]
[1748396000170,0.2914964,108880.0,108870.0,1.92109414]
[1748396000359,0.2914964,108880.0,108870.0,1.75106363]
[1748396000559,0.2914964,108880.0,108870.0,1.84618248]
[1748396000763,0.1079,108880.0,108870.0,1.83205867]
[1748396001276,0.2914964,108880.0,108870.0,1.83205867]
[1748396002167,0.1079,108880.0,108870.0,1.83205867]
[1748396002771,0.0561,108880.0,108870.0,1.83205867]
[1748396003069,0.0561,108880.0,108870.0,1.95354784]
[1748396003665,0.0561,108880.0,108870.0,1.83205867]
[1748396004965,0.0561,108880.0,108870.0,1.95354784]
[1748396005473,0.0561,108880.0,108870.0,1.83205867]
[1748396005768,0.0561,108880.0,108870.0,1.47125867]
[1748396005970,0.1089,108880.0,108870.0,1.83205867]
[1748396006573,0.1089,108880.0,108870.0,1.79075867]
[1748396007367,0.2924964,108880.0,108870.0,1.79075867]
[1748396007573,0.3451964,108880.0,108870.0,1.2392295]
[1748396007774,0.3451964,108880.0,108870.0,1.68455867]
[1748396007960,0.3451964,108880.0,108870.0,1.68443867]
[1748396008160,0.3451964,108880.0,108870.0,1.68455867]
[1748396008370,0.3451964,108880.0,108870.0,1.68443867]
[1748396008569,0.3451964,108880.0,108870.0,1.15263867]
[1748396008758,0.65029559,108880.0,108870.0,1.20292237]
[1748396008962,0.65029559,108880.0,108870.0,0.4463296]
[1748396009271,0.65029559,108880.0,108870.0,0.9786496]
[1748396009464,0.65029559,108880.0,108870.0,0.9785296]
[1748396009666,0.65029559,108880.0,108870.0,0.9786496]
[1748396010372,0.52880642,108880.0,108870.0,0.9786496]
[1748396010870,0.92701198,108880.0,108870.0,0.9784496]
[1748396011072,0.56621198,108880.0,108870.0,0.9784496]
[1748396011670,0.56621283,108880.0,108870.0,0.9784496]
[1748396012169,0.52880642,108880.0,108870.0,0.9784496]
[1748396014572,0.56621531,108880.0,108870.0,0.9784496]
[1748396015376,0.56621531,108880.0,108870.0,0.97396751]
[1748396015673,0.68770448,108880.0,108870.0,0.44196751]
[1748396015871,0.65029559,108880.0,108870.0,1.15819547]
[1748396017065,1.01109559,108880.0,108870.0,0.72891547]
[1748396017271,1.01109559,108880.0,108870.0,1.15803547]
[1748396017880,1.01109559,108880.0,108870.0,1.12226172]
[1748396018362,0.88960642,108880.0,108870.0,1.12226172]
[1748396018565,1.01109559,108880.0,108870.0,1.12226166]
[1748396019778,1.01109559,108880.0,108870.0,1.12226188]
[1748396020280,1.01109559,108880.0,108870.0,1.12226198]
[1748396020483,1.01109559,108880.0,108870.0,1.12226233]
[1748396020687,0.88960642,108880.0,108870.0,1.12226233]
[1748396020974,0.88960642,108880.0,108870.0,1.02608751]
[1748396021176,0.88960642,108880.0,108870.0,1.03887726]
[1748396022279,0.88960642,108880.0,108870.0,1.03851726]
[1748396022477,0.88960642,108880.0,108870.0,1.09271003]
[1748396022783,0.88960642,108880.0,108870.0,1.03851726]
[1748396022985,0.88960642,108880.0,108870.0,1.03851727]
[1748396023174,0.88960642,108880.0,108870.0,1.03851728]
[1748396023376,0.88960642,108880.0,108870.0,1.02572751]
[1748396023782,0.88960642,108880.0,108870.0,1.09270817]
[1748396023988,0.88960642,108880.0,108870.0,1.02572751]
[1748396024279,0.88960642,108880.0,108870.0,1.03851456]
[1748396025084,0.52880642,108880.0,108870.0,1.03851456]
[1748396025380,0.88960642,108880.0,108870.0,1.03851383]
[1748396026280,0.88960642,108880.0,108870.0,1.160003]
[1748396026586,0.88960642,108880.0,108870.0,1.25970201]
[1748396027087,0.88960642,108880.0,108870.0,1.25970068]
[1748396027489,0.88960642,108880.0,108870.0,1.25970004]
[1748396028582,0.88960642,108880.0,108870.0,1.25969988]
[1748396028791,0.92700438,108880.0,108870.0,0.84253952]
[1748396029089,0.92700438,108880.0,108870.0,1.02615292]
[1748396029292,0.92700446,108880.0,108870.0,1.07815292]
[1748396029480,1.04849363,108880.0,108870.0,1.02615292]
[1748396029784,1.04849363,108880.0,108870.0,1.01336956]
[1748396030089,0.92700446,108880.0,108870.0,1.02615659]
[1748396030389,0.92700446,108880.0,108870.0,1.01336956]
[1748396030583,0.92700446,108880.0,108870.0,1.0762567]
[1748396031493,0.92700446,108880.0,108870.0,1.07625689]
[1748396031788,0.92700446,108880.0,108870.0,1.06346956]
[1748396034291,1.04849363,108880.0,108870.0,1.01288956]
[1748396034488,1.04849363,108880.0,108870.0,1.06458956]
[1748396034882,0.92700446,108880.0,108870.0,1.06458956]
[1748396035986,0.88960642,108880.0,108870.0,1.07814038]
[1748396038490,0.92702996,108880.0,108870.0,1.07814038]
[1748396039292,0.88960642,108880.0,108870.0,1.07814038]
[1748396039590,0.92703051,108880.0,108870.0,1.07802038]
[1748396041186,0.74342049,108880.0,108870.0,1.18362038]
[1748396041395,0.52880642,108880.0,108870.0,1.7962962]
[1748396041891,0.2924964,108880.0,108870.0,1.7962962]
[1748396042091,0.2924964,108880.0,108870.0,1.66590955]
[1748396042092,0.2396964,108880.0,108870.0,1.66590955]
[1748396042296,0.0561,108880.0,108870.0,1.66590955]
[1748396042500,0.27712766,108880.0,108870.0,1.66590955]
[1748396043884,0.0561,108880.0,108870.0,1.61171678]
[1748396044092,0.2396965,108880.0,108870.0,1.66590955]
[1748396045594,0.2396965,108880.0,108870.0,1.72798603]
[1748396045896,0.0561,108880.0,108870.0,1.82136221]
[1748396046400,0.2396966,108880.0,108870.0,1.82136221]
[1748396046604,0.2396966,108880.0,108870.0,1.82135985]
[1748396047500,0.0561,108880.0,108870.0,1.82135985]
[1748396047896,0.0561,108880.0,108870.0,1.86265985]
[1748396053798,0.0561,108880.0,108870.0,1.78345834]
[1748396054003,0.0561,108880.0,108870.0,1.90494751]
[1748396054303,0.0561,108880.0,108870.0,1.78345834]
[1748396054993,0.0541,108880.0,108870.0,1.78445834]
[1748396055192,0.0541,108880.0,108870.0,1.85212866]
[1748396055393,0.0541,108880.0,108870.0,1.85210359]
[1748396055800,0.0521,108880.0,108870.0,1.85210359]
[1748396058513,0.1011,108890.0,108880.0,0.1835965]
[1748396058806,0.05431576,108900.0,108890.0,0.1835797]
[1748396058992,0.34092578,108900.0,108890.0,1.84316273]
[1748396059598,0.34092578,108900.0,108890.0,1.89170409]
[1748396059800,0.34092578,108900.0,108890.0,1.97352557]
[1748396061301,0.34092578,108900.0,108890.0,1.97336557]
[1748396062899,0.15731576,108900.0,108890.0,1.97329468]
[1748396063506,0.15731576,108900.0,108890.0,1.90502055]
[1748396063907,0.15731576,108900.0,108890.0,1.90498353]
[1748396064306,0.15731576,108900.0,108890.0,1.86521124]
[1748396064502,0.15731576,108900.0,108890.0,1.97316052]
[1748396066211,0.3608,108920.0,108910.0,0.183546]
[1748396066398,0.10211275,108940.0,108910.0,1.79698052]
[1748396066599,0.0019,108940.0,108930.0,1.2021952]
[1748396066798,0.001,108960.0,108950.0,0.1834786]
[1748396067009,1e-07,108960.0,108950.0,3.39001816]
[1748396067202,0.00203752,108970.0,108960.0,0.1834618]
[1748396067400,2e-08,108970.0,108960.0,1.40074014]
[1748396067603,2e-08,108970.0,108960.0,1.57422901]
[1748396067811,2e-08,108970.0,108960.0,3.13653926]
[1748396068106,2e-08,108970.0,108960.0,3.20395777]
[1748396068408,2e-08,108970.0,108960.0,3.20948659]
[1748396068709,2e-08,108970.0,108960.0,3.14186507]
[1748396069299,2e-08,108970.0,108960.0,3.06014819]
[1748396070300,2e-08,108970.0,108960.0,3.04658645]
[1748396070502,2e-08,108970.0,108960.0,3.05584977]
[1748396071216,2e-08,108970.0,108960.0,3.4662406]
[1748396071512,2e-08,108970.0,108960.0,3.5076606]
[1748396071719,2e-08,108970.0,108960.0,3.5076206]
[1748396071908,2e-08,108970.0,108960.0,3.62910977]
[1748396072611,2e-08,108970.0,108960.0,3.53733778]
[1748396073313,2e-08,108970.0,108960.0,3.49694937]
[1748396073613,2e-08,108970.0,108960.0,3.3754602]
[1748396073810,2e-08,108970.0,108960.0,3.49694937]
[1748396074416,0.00448211,108970.0,108960.0,3.49694937]
[1748396074720,0.00448211,108970.0,108960.0,3.3753002]
[1748396074907,0.00448211,108970.0,108960.0,3.3751802]
[1748396075109,0.00448211,108970.0,108960.0,3.49682937]
[1748396075413,0.00448211,108970.0,108960.0,2.8466202]
[1748396075613,0.10638211,108970.0,108960.0,2.8467402]
[1748396075921,0.10638211,108970.0,108960.0,3.3753802]
[1748396076216,0.10638211,108970.0,108960.0,2.8467402]
[1748396076426,0.10638211,108970.0,108960.0,3.3751802]
[1748396076605,0.10638211,108970.0,108960.0,3.3753002]
[1748396077314,0.10638211,108970.0,108960.0,3.85758937]
[1748396077618,0.10638211,108970.0,108960.0,3.7357402]
[1748396078316,0.10638211,108970.0,108960.0,3.32902937]
[1748396078523,0.10638211,108970.0,108960.0,3.7357402]
[1748396079523,0.10638211,108970.0,108960.0,3.7357002]
[1748396080320,0.10638211,108970.0,108960.0,3.61409103]
[1748396080520,0.10638211,108970.0,108960.0,3.7355802]
[1748396081419,0.10638211,108970.0,108960.0,3.85706937]
[1748396084923,0.10638211,108970.0,108960.0,3.7355802]
[1748396085427,0.10638211,108970.0,108960.0,3.0139802]
[1748396085616,0.10638211,108970.0,108960.0,3.7355802]
[1748396088322,0.10638211,108970.0,108960.0,3.77584861]
[1748396089734,0.10638211,108970.0,108960.0,3.34904861]
[1748396089936,0.10638211,108970.0,108960.0,3.77520861]
[1748396090732,0.10638211,108970.0,108960.0,3.24780861]
[1748396090929,0.10638211,108970.0,108960.0,3.77520861]
[1748396091527,0.10638211,108970.0,108960.0,3.24780861]
[1748396091727,0.10638211,108970.0,108960.0,3.34904861]
[1748396091928,0.10638211,108970.0,108960.0,3.77508861]
[1748396092231,0.10638211,108970.0,108960.0,3.77520861]
[1748396093237,0.10638211,108970.0,108960.0,3.78877035]
[1748396093625,0.10638211,108970.0,108960.0,3.26137035]
[1748396093820,0.28999213,108970.0,108960.0,3.20947035]
[1748396094234,0.28999213,108970.0,108960.0,3.73687035]
[1748396094435,0.28999213,108970.0,108960.0,3.73675035]
[1748396094631,0.28999213,108970.0,108960.0,3.73687035]
[1748396094836,0.28999213,108970.0,108960.0,2.23687035]
[1748396096041,0.47343723,108970.0,108960.0,1.65787035]
[1748396096231,0.47343723,108970.0,108960.0,1.6623984]
[1748396096425,0.47343723,108970.0,108960.0,1.3014784]
[1748396096627,0.99241687,108970.0,108960.0,0.52692591]
[1748396096829,1.33419103,108970.0,108960.0,0.16066334]
[1748396097039,1.70149459,108970.0,108960.0,0.10816334]
[1748396097244,0.1834619,108960.0,108950.0,0.00137674]
[1748396097433,0.1834788,108950.0,108940.0,0.00013752]
[1748396097736,0.1835125,108930.0,108920.0,0.89044266]
[1748396097937,0.5443125,108930.0,108920.0,1.20647806]
[1748396098127,0.5443125,108930.0,108920.0,1.32808723]
[1748396098433,0.5443125,108930.0,108920.0,1.20659806]
[1748396099336,0.5443125,108930.0,108920.0,0.73455596]
[1748396099641,0.66580167,108930.0,108920.0,1.16071596]
[1748396099831,0.5443125,108930.0,108920.0,1.16059596]
[1748396100031,0.5453125,108930.0,108920.0,1.16359596]
[1748396100439,1.00860967,108930.0,108920.0,1.11976276]
[1748396100628,1.05870967,108930.0,108920.0,1.11788276]
[1748396100938,1.11190967,108930.0,108920.0,1.11776276]
[1748396101139,1.11190967,108930.0,108920.0,1.11788276]
[1748396101325,1.11190967,108930.0,108920.0,0.69168276]
[1748396101844,1.11190967,108930.0,108920.0,0.69156276]
[1748396102140,1.11190967,108930.0,108920.0,0.50615396]
[1748396102336,1.11190967,108930.0,108920.0,0.30703396]
[1748396102644,1.11190967,108930.0,108920.0,0.30715396]
[1748396103044,1.48190967,108930.0,108920.0,0.30715396]
[1748396103338,1.60339884,108930.0,108920.0,0.122]
[1748396103642,1.64034138,108930.0,108920.0,0.12212]
[1748396103833,1.64034138,108930.0,108920.0,0.122]
[1748396104136,1.64034138,108930.0,108920.0,0.12212]
[1748396105444,1.60339884,108930.0,108920.0,0.12212]
[1748396105740,1.48639176,108930.0,108920.0,0.12212]
[1748396106040,1.58767176,108930.0,108920.0,0.12212]
[1748396106247,1.70916093,108930.0,108920.0,0.12212]
[1748396112044,1.70916093,108930.0,108920.0,0.0683979]
[1748396112547,1.70916093,108930.0,108920.0,0.0682779]
[1748396112847,1.70916093,108930.0,108920.0,0.0683979]
[1748396117250,1.45916093,108930.0,108920.0,0.0683979]
[1748396118143,1.76407176,108930.0,108920.0,0.0683979]
[1748396118350,1.88556093,108930.0,108920.0,0.0673979]
[1748396118541,1.88856093,108930.0,108920.0,0.0673979]